bitfinex/quotes_ETHUSD_20260107
["timestamp","ask_amount","ask_price","bid_price","bid_amount"]
[1767760264467,0.90573474,3259.0,3258.1,3.55415137]
[1767760264656,0.90573474,3259.0,3258.1,0.48488766]
[1767760264853,0.93320358,3258.9,3258.1,0.48488766]
[1767760265691,0.93320358,3258.8,3258.1,3.55415309]
[1767760266097,0.93320358,3258.8,3258.1,4.51662203]
[1767760266889,3.06852106,3258.9,3258.2,0.96246894]
[1767760267069,0.93320358,3258.8,3258.1,4.51662203]
[1767760267396,0.93320358,3258.8,3258.2,0.96246894]
[1767760267613,0.001,3259.1,3258.3,0.96246894]
[1767760267898,0.001,3259.1,3258.4,0.99315884]
[1767760268574,0.001,3259.1,3258.4,0.99515884]
[1767760270691,0.001,3259.1,3258.4,0.96446894]
[1767760271890,0.93420358,3259.1,3258.4,0.96446894]
[1767760272767,3.06842589,3259.0,3258.4,0.96446894]
[1767760273096,4.00257046,3259.1,3258.4,0.96446894]
[1767760273293,0.70708318,3259.0,3258.4,0.96446894]
[1767760274377,0.001,3259.1,3258.4,0.96446894]
[1767760274578,3.06936068,3259.1,3258.4,0.96446894]
[1767760274890,0.001,3259.1,3258.4,0.96446894]
[1767760278907,0.001,3259.1,3258.6,0.96246894]
[1767760281197,0.001,3258.8,3258.6,0.96246894]
[1767760286583,0.001,3258.8,3258.4,0.002]
[1767760286897,0.93320358,3258.7,3258.0,0.002]
[1767760287209,0.93320358,3258.5,3257.8,0.002]
[1767760287773,0.93320358,3258.5,3257.8,0.96446894]
[1767760287973,4.54345142,3258.6,3257.8,0.96446894]
[1767760288205,0.93320358,3258.5,3257.8,0.96446894]
[1767760288384,1.6944196,3258.5,3257.8,0.96446894]
[1767760288588,1.6944196,3258.5,3257.8,4.03401284]
[1767760289675,1.6944196,3258.5,3257.8,0.96446894]
[1767760290102,1.6944196,3258.5,3257.8,4.03400962]
[1767760292403,0.93320358,3258.5,3257.8,4.03400962]
[1767760292585,0.93320358,3258.5,3258.1,0.002]
[1767760296222,0.001,3258.8,3258.1,0.91214718]
[1767760297011,0.001,3258.8,3258.2,3.97932648]
[1767760297309,0.001,3258.8,3258.3,0.91014718]
[1767760304619,0.001,3258.5,3258.3,0.91014718]
[1767760304917,0.94041955,3258.7,3258.1,3.07122727]
[1767760305099,0.94041955,3258.7,3258.1,3.68529359]
[1767760307987,0.94041955,3258.7,3258.1,6.75456709]
[1767760308723,0.94041955,3258.7,3258.1,3.68529359]
[1767760310219,0.001,3258.8,3258.2,0.91014718]
[1767760315506,0.001,3258.8,3258.3,0.91014718]
[1767760315822,0.001,3258.8,3258.4,0.91014718]
[1767760316227,0.001,3258.8,3258.6,0.91014718]
[1767760316613,0.001,3259.1,3258.8,0.91014718]
[1767760316927,0.001,3259.4,3259.1,0.91014718]
[1767760319032,0.001,3259.4,3259.2,0.9055015]
[1767760319219,0.09200196,3259.9,3259.4,0.9055015]
[1767760319420,0.90693296,3259.8,3259.0,3.06836533]
[1767760320237,0.90693296,3259.7,3258.8,6.13721233]
[1767760320537,0.90693296,3259.7,3258.8,3.06859812]
[1767760320749,0.99893492,3259.7,3258.8,3.06859812]
[1767760320940,0.99893492,3259.7,3258.9,0.69412791]
[1767760321240,0.99893492,3259.7,3259.0,0.9055015]
[1767760322229,0.99893492,3259.7,3258.5,0.002]
[1767760322230,1.08844972,3259.4,3258.5,0.002]
[1767760322707,0.09200196,3259.2,3258.5,0.99541512]
[1767760323809,0.09200196,3259.2,3258.5,4.06430118]
[1767760324008,0.09200196,3259.2,3258.6,1.39984524]
[1767760324208,4.1565714,3259.4,3258.7,0.99341512]
[1767760324409,1.08844972,3259.4,3258.7,0.99341512]
[1767760325219,4.15651147,3259.4,3258.7,0.99341512]
[1767760325732,0.99644776,3259.3,3258.5,0.002]
[1767760325946,0.99644776,3259.1,3258.2,0.99341512]
[1767760326310,3.16051126,3259.0,3258.2,0.99341512]
[1767760326842,4.15695902,3259.0,3258.2,0.99341512]
[1767760327215,4.06495706,3259.0,3258.2,4.06256633]
[1767760327423,0.99644776,3259.0,3258.3,0.99341512]
[1767760327731,3.88271885,3259.2,3258.5,0.99341512]
[1767760328549,0.72245732,3259.2,3258.6,0.99341512]
[1767760328760,1.08844972,3259.9,3258.8,0.99341512]
[1767760329038,3.15980852,3259.7,3258.8,0.99341512]
[1767760329200,7.22406284,3259.7,3258.8,0.99341512]
[1767760331835,0.99644776,3259.6,3258.8,0.99341512]
[1767760332041,0.09200196,3259.3,3258.5,0.99541512]
[1767760332739,1.08844972,3259.3,3258.5,0.99541512]
[1767760333128,4.1566252,3259.3,3258.5,4.06426031]
[1767760334237,4.1566252,3259.3,3258.6,0.99341512]
[1767760335647,1.08844972,3259.3,3258.6,0.99341512]
[1767760336640,1.08844972,3259.3,3258.7,0.99341512]
[1767760336831,4.86816662,3259.8,3258.9,0.99341512]
[1767760337030,0.09200196,3259.9,3258.9,0.99341512]
[1767760337234,3.15962893,3259.9,3258.9,0.99341512]
[1767760337548,3.15962893,3259.9,3259.0,0.99341512]
[1767760339048,0.99644776,3259.8,3258.9,0.55043506]
[1767760339251,0.99644776,3259.8,3258.8,3.06856718]
[1767760339552,0.99644776,3259.6,3258.6,0.99341512]
[1767760339755,0.99644776,3259.6,3259.0,3.06837969]
[1767760340052,3.15958361,3259.9,3259.1,0.99341512]
[1767760340756,0.001,3259.6,3259.1,0.99341512]
[1767760341054,0.001,3259.6,3259.2,0.99341512]
[1767760346229,0.001,3259.6,3258.9,0.99341512]
[1767760351756,0.001,3259.6,3259.0,0.98540546]
[1767760351949,0.001,3259.6,3259.0,1.01608971]
[1767760352256,0.001,3259.6,3259.0,0.98540546]
[1767760352760,1.5918394,3259.6,3259.0,0.98540546]
[1767760352966,0.001,3259.3,3259.0,0.98540546]
[1767760355799,0.001,3259.3,3258.7,0.98540546]
[1767760356077,0.001,3259.3,3258.5,0.002]
[1767760356078,1.07020438,3259.3,3258.5,0.002]
[1767760359586,1.06920438,3259.1,3258.5,0.002]
[1767760359743,0.7865355,3259.0,3258.5,0.002]
[1767760361073,1.06920438,3258.9,3258.1,0.002]
[1767760361253,1.06920438,3258.9,3257.7,0.002]
[1767760361752,0.97720242,3258.7,3257.7,0.002]
[1767760362448,0.97720242,3258.7,3257.8,0.98740546]
[1767760362673,0.71144308,3258.6,3257.8,0.98740546]
[1767760364096,3.06889673,3258.5,3257.8,0.98740546]
[1767760365273,3.78029285,3258.6,3257.8,0.98740546]
[1767760368005,3.78029285,3258.6,3257.9,0.98540546]
[1767760368607,0.71144308,3258.6,3258.1,0.98540546]
[1767760368774,3.06861421,3258.8,3258.1,0.98540546]
[1767760369094,6.13722842,3258.8,3258.1,0.98540546]
[1767760369278,7.11424252,3258.9,3258.1,0.98540546]
[1767760370399,6.1370401,3258.9,3258.1,0.98540546]
[1767760371799,0.97720242,3258.8,3257.8,0.98740546]
[1767760372001,0.97720242,3258.6,3257.8,0.98740546]
[1767760372212,0.97720242,3258.6,3257.8,0.002]
[1767760372385,0.72062445,3258.7,3257.8,0.002]
[1767760372698,0.97720242,3258.6,3257.8,0.002]
[1767760372899,1.14698511,3258.6,3257.9,0.98540546]
[1767760373103,0.16978269,3258.6,3257.9,0.98540546]
[1767760373282,0.72062445,3258.7,3257.9,0.98540546]
[1767760373483,1.69782687,3258.7,3257.9,0.50580546]
[1767760373874,4.04609716,3258.6,3257.9,0.50580546]
[1767760374302,0.97720242,3258.5,3257.8,0.002]
[1767760375708,3.06889474,3258.6,3257.9,0.98540546]
[1767760375898,3.75471767,3258.6,3257.9,0.98540546]
[1767760376300,3.75471767,3258.6,3258.1,0.002]
[1767760376801,3.75571767,3258.6,3258.1,0.002]
[1767760377685,3.06896825,3258.5,3258.1,0.002]
[1767760378106,0.97720242,3258.4,3257.8,0.002]
[1767760378409,0.97720242,3258.3,3257.8,0.002]
[1767760380009,3.0691793,3258.2,3257.8,0.002]
[1767760380178,0.92470777,3258.1,3257.8,0.002]
[1767760381607,3.0691793,3258.2,3257.8,0.002]
[1767760381791,0.61382674,3258.1,3257.8,0.002]
[1767760385110,0.37557912,3258.4,3257.8,0.002]
[1767760385310,0.37557912,3258.4,3257.8,0.95102332]
[1767760385311,3.44461107,3258.4,3257.8,0.95102332]
[1767760385612,3.44461107,3258.4,3258.0,0.94902332]
[1767760386713,0.37557912,3258.4,3258.0,0.94902332]
[1767760386882,3.06984179,3258.6,3258.0,0.94902332]
[1767760387494,0.001,3258.6,3258.0,0.94902332]
[1767760388505,0.65993789,3258.6,3258.0,0.94902332]
[1767760389713,3.06889673,3258.5,3258.0,0.94902332]
[1767760391800,6.13877861,3258.6,3258.0,0.94902332]
[1767760392092,0.72190366,3258.5,3258.0,0.94902332]
[1767760393419,3.06899091,3258.4,3258.0,0.94902332]
[1767760396436,3.79084522,3258.5,3258.0,0.94902332]
[1767760396798,6.85978678,3258.5,3257.8,0.95102332]
[1767760399035,0.98825603,3258.4,3257.8,0.002]
[1767760399229,1.77316031,3258.4,3257.8,0.002]
[1767760400645,3.0690851,3258.3,3258.1,0.002]
[1767760401012,0.001,3258.2,3258.1,0.002]
[1767760409147,0.98925603,3258.2,3257.8,0.002]
[1767760409446,0.71274262,3258.1,3257.8,0.002]
[1767760412322,4.05850289,3258.2,3257.8,0.002]
[1767760412735,3.07024686,3258.2,3257.8,1.00140703]
[1767760412944,0.001,3258.2,3257.8,1.00140703]
[1767760413565,0.001,3258.2,3258.1,0.002]
[1767760424948,0.001,3258.2,3257.8,0.002]
[1767760425770,0.001,3258.2,3257.8,1.00140703]
[1767760429947,0.001,3258.2,3258.0,0.99940703]
[1767760433254,0.001,3258.2,3257.8,1.00140703]
[1767760433453,0.98633904,3258.1,3257.8,0.002]
[1767760433852,0.001,3258.2,3257.8,0.002]
[1767760435987,0.98733904,3258.2,3257.8,0.002]
[1767760437477,0.98733904,3258.2,3258.1,0.002]
[1767760438177,0.001,3258.2,3258.1,0.002]
[1767760438886,0.99239555,3258.2,3258.1,0.002]
[1767760439112,0.99239555,3258.2,3257.8,0.002]
[1767760439783,0.001,3258.2,3257.8,0.002]
[1767760440173,0.001,3258.2,3257.8,0.94772391]
[1767760441303,0.001,3258.2,3257.8,0.002]
[1767760443398,3.0701793,3258.2,3257.8,0.002]
[1767760443874,0.001,3258.2,3257.8,0.002]
[1767760449210,0.001,3258.2,3258.1,0.002]
[1767760449398,0.40715352,3258.2,3258.1,0.002]
[1767760449905,3.47633282,3258.2,3258.1,0.002]
[1767760450479,4.13680424,3258.2,3258.1,0.002]
[1767760450682,3.47633282,3258.2,3258.1,0.002]
[1767760453112,4.13678763,3258.2,3258.1,0.002]
[1767760453412,1.06760833,3258.2,3258.1,0.002]
[1767760453585,4.13678763,3258.2,3258.1,0.002]
[1767760454616,1.06760833,3258.2,3258.1,0.002]
[1767760455237,4.13678763,3258.2,3258.1,0.002]
[1767760456327,1.06760833,3258.2,3258.1,0.002]
[1767760456535,4.13678763,3258.2,3258.1,0.002]
[1767760456834,1.06760833,3258.2,3258.1,0.002]
[1767760457334,0.40715352,3258.2,3258.1,0.002]
[1767760457533,0.001,3258.2,3258.1,0.002]
[1767760459934,0.93553534,3258.2,3258.1,0.002]
[1767760460108,0.93553534,3258.2,3257.8,0.002]
[1767760461133,0.93553534,3258.2,3258.1,0.002]
[1767760461631,0.93553534,3258.2,3257.8,0.002]
[1767760462020,0.93453534,3258.1,3257.8,0.002]
[1767760463738,0.92640182,3258.1,3257.8,0.002]
[1767760466442,1.33419527,3258.0,3257.8,0.002]
[1767760466616,0.93453534,3258.0,3257.8,0.002]
[1767760467037,0.93453534,3258.0,3257.4,0.002]
[1767760467443,1.0265373,3258.0,3257.4,0.002]
[1767760467622,0.93453534,3257.8,3257.4,0.002]
[1767760469329,3.06946192,3257.9,3257.4,0.002]
[1767760469550,0.61388545,3257.8,3257.4,0.002]
[1767760469753,3.68352573,3257.8,3257.4,0.002]
[1767760471253,6.75316601,3257.8,3257.4,0.002]
[1767760471558,6.75316601,3257.8,3257.0,0.002]
[1767760471559,1.0265373,3257.7,3257.0,0.002]
[1767760471855,6.13948918,3257.6,3257.0,0.002]
[1767760472158,0.71660265,3257.5,3257.0,0.002]
[1767760473332,0.71660265,3257.5,3257.4,0.002]
[1767760473531,0.71660265,3257.5,3257.0,0.002]
[1767760473933,3.78648508,3257.5,3257.0,0.002]
[1767760474238,0.71660265,3257.5,3257.0,0.93668047]
[1767760474439,3.06965036,3257.7,3257.0,0.93668047]
[1767760475168,0.93068346,3257.6,3257.0,0.002]
[1767760476236,0.93068346,3257.5,3257.0,0.002]
[1767760480461,4.0005391,3257.5,3257.0,0.002]
[1767760480642,0.70703541,3257.4,3257.0,0.002]
[1767760481458,0.70703541,3257.4,3257.0,0.93668047]
[1767760482672,3.7769974,3257.4,3257.0,0.93668047]
[1767760485369,3.7769974,3257.4,3257.3,0.002]
[1767760485680,3.7769974,3257.4,3257.0,0.002]
[1767760485884,0.68468442,3257.3,3257.0,0.002]
[1767760486988,0.68468442,3257.3,3256.7,0.002]
[1767760486989,3.07012157,3257.2,3256.7,0.002]
[1767760488954,0.68468442,3257.3,3256.7,0.93668047]
[1767760489158,0.93068346,3257.4,3256.7,0.93668047]
[1767760489464,4.00062848,3257.4,3256.7,0.93668047]
[1767760489662,7.0705735,3257.4,3256.7,0.002]
[1767760489859,0.93068346,3257.3,3256.7,0.002]
[1767760491585,3.06994502,3257.4,3256.7,0.93668047]
[1767760491799,4.00062848,3257.4,3256.7,0.93668047]
[1767760491969,4.70767702,3257.4,3256.7,0.93668047]
[1767760496293,0.09200196,3257.3,3256.7,0.93668047]
[1767760496491,0.93068346,3257.2,3256.7,0.002]
[1767760496794,0.09200196,3257.3,3256.7,0.93668047]
[1767760496996,3.16207611,3257.3,3256.7,0.93668047]
[1767760497873,0.001,3257.1,3256.7,0.93668047]
[1767760500433,0.31730761,3257.1,3256.7,0.93668047]
[1767760501226,0.001,3257.1,3256.7,0.93668047]
[1767760502179,0.09200196,3257.7,3256.7,0.93668047]
[1767760502180,0.09300196,3258.2,3257.1,0.92003905]
[1767760502383,0.09200196,3258.0,3257.1,0.92003905]
[1767760502579,0.94688556,3257.9,3257.1,0.92003905]
[1767760502831,0.66029614,3257.8,3257.1,0.92003905]
[1767760502984,6.138547,3258.1,3257.1,0.92003905]
[1767760503182,1.56064519,3258.0,3257.1,0.92003905]
[1767760503395,0.94669049,3257.9,3257.1,0.92003905]
[1767760503699,3.07018964,3258.2,3257.1,0.92003905]
[1767760503899,0.66019434,3258.1,3257.3,0.92003905]
[1767760504709,4.63278182,3258.1,3257.3,0.92003905]
[1767760505043,0.90329472,3258.0,3257.2,0.92003905]
[1767760505191,0.99529668,3257.9,3257.2,0.92003905]
[1767760505939,0.99529668,3257.9,3256.9,3.07035429]
[1767760505940,0.90329472,3257.7,3256.8,3.99053769]
[1767760506094,0.90329472,3257.7,3256.9,0.92003905]
[1767760506846,0.90329472,3257.7,3257.0,0.95074215]
[1767760507354,0.90329472,3257.7,3257.0,0.92003905]
[1767760507551,0.90329472,3257.7,3257.0,1.62921309]
[1767760508552,0.90329472,3257.7,3257.1,3.07021583]
[1767760509573,0.001,3257.4,3257.1,3.07021583]
[1767760509777,0.90329472,3257.7,3257.1,3.07021583]
[1767760510065,0.90329472,3258.1,3257.2,0.92003905]
[1767760510272,0.001,3258.2,3257.4,0.92003905]
[1767760510494,1.5640483,3258.2,3257.4,0.92003905]
[1767760510652,0.90429472,3258.2,3257.5,3.98987788]
[1767760511180,0.001,3258.2,3257.6,0.92003905]
[1767760513486,0.90429472,3258.2,3257.4,0.92003905]
[1767760513790,1.05966246,3258.1,3257.4,0.92003905]
[1767760514866,4.12899822,3258.1,3257.4,0.92003905]
[1767760515181,4.12899822,3258.1,3257.2,3.07006657]
[1767760515374,0.90329472,3258.0,3257.2,3.99010562]
[1767760515573,1.31629454,3258.0,3257.2,3.99010562]
[1767760515983,4.38568461,3258.0,3257.2,3.99010562]
[1767760516283,1.31629454,3258.0,3257.2,3.99010562]
[1767760516885,1.31629454,3258.0,3257.3,0.92003905]
[1767760517586,4.38566533,3258.0,3257.3,0.92003905]
[1767760518060,0.45420331,3257.9,3257.3,0.92003905]
[1767760518260,1.31629454,3258.0,3257.3,3.9900626]
[1767760520687,0.90329472,3257.9,3257.0,1.72503905]
[1767760520886,0.90329472,3257.9,3257.0,4.79528704]
[1767760521087,0.90329472,3257.9,3257.0,1.72503905]
[1767760521289,0.001,3257.6,3257.0,1.72503905]
[1767760521490,0.001,3257.6,3257.1,1.39957965]
[1767760521788,0.001,3257.6,3257.0,0.805]
[1767760522182,0.001,3257.6,3257.0,1.72503905]
[1767760529987,0.90429472,3257.6,3257.0,1.72503905]
[1767760530189,0.90429472,3257.6,3256.8,0.92003905]
[1767760530494,0.90429472,3257.6,3256.7,0.002]
[1767760530700,0.90329472,3257.4,3256.7,0.002]
[1767760532172,0.95042807,3257.2,3256.7,0.002]
[1767760533285,4.02055553,3257.2,3257.0,0.002]
[1767760533478,4.02055553,3257.2,3256.7,0.002]
[1767760533678,0.95042807,3257.2,3256.7,0.002]
[1767760533878,1.35247678,3257.2,3256.7,0.002]
[1767760534690,1.35247678,3257.2,3256.4,3.07286013]
[1767760534691,0.95042807,3257.0,3256.4,0.002]
[1767760535583,3.07040437,3256.9,3256.4,0.002]
[1767760538305,7.09123681,3256.9,3256.4,0.002]
[1767760538612,0.95042807,3256.8,3256.0,0.002]
[1767760538811,0.95042807,3256.6,3256.0,0.002]
[1767760543309,4.02113185,3256.6,3256.0,0.002]
[1767760545295,0.95042807,3256.5,3256.0,0.002]
[1767760545495,0.95042807,3256.5,3256.3,0.002]
[1767760545691,0.95042807,3256.5,3256.0,0.002]
[1767760545692,6.14158377,3256.5,3256.0,0.002]
[1767760545896,0.95042807,3256.3,3255.6,0.002]
[1767760546213,0.95042807,3256.3,3255.6,0.98390022]
[1767760547907,4.02144429,3256.3,3255.6,0.98390022]
[1767760549212,0.61415838,3256.4,3255.6,0.98390022]
[1767760549411,3.0707384,3256.6,3255.7,0.98190022]
[1767760549598,4.73033955,3256.6,3255.7,0.98190022]
[1767760549793,0.95042807,3256.5,3255.7,0.98190022]
[1767760550138,0.95042807,3256.5,3255.5,3.07169919]
[1767760550139,0.09200196,3255.4,3254.8,0.98022925]
[1767760550310,1.04243003,3255.2,3254.5,1.42871527]
[1767760550621,1.04243003,3255.2,3254.4,0.805]
[1767760550622,0.09200196,3255.0,3254.4,0.805]
[1767760550823,0.09200196,3254.7,3253.4,8.53900808]
[1767760551003,1.04243003,3254.7,3253.5,0.83573613]
[1767760551210,1.59501785,3254.7,3253.9,0.98190022]
[1767760551521,1.04026543,3254.7,3253.9,0.98190022]
[1767760552022,1.04243003,3255.0,3254.1,0.98190022]
[1767760552221,3.16401602,3255.2,3254.3,0.98190022]
[1767760552426,0.09200196,3255.0,3254.3,0.98190022]
[1767760553208,0.09200196,3255.0,3253.1,0.98190022]
[1767760553209,0.95042807,3254.3,3253.1,0.98190022]
[1767760553430,0.41760376,3255.0,3253.8,0.98190022]
[1767760553431,0.3256018,3255.0,3253.8,0.98190022]
[1767760553607,0.95042807,3254.9,3253.8,0.98190022]
[1767760553813,0.95042807,3254.8,3253.8,0.98190022]
[1767760554022,3.07266861,3254.5,3253.8,0.98190022]
[1767760554238,0.28409157,3254.4,3253.8,0.98190022]
[1767760556327,0.28359229,3254.3,3253.8,0.98190022]
[1767760556637,4.02301948,3254.6,3253.8,0.98190022]
[1767760556805,0.74115427,3254.5,3253.8,0.98190022]
[1767760557006,0.28359354,3254.4,3253.8,0.98190022]
[1767760557205,0.41655313,3254.5,3253.8,0.9797456]
[1767760557406,0.28359311,3254.4,3254.1,0.002]
[1767760557606,0.28359311,3254.3,3254.1,0.002]
[1767760557834,0.47231657,3254.4,3254.1,0.002]
[1767760558006,0.28350661,3254.3,3254.1,0.002]
[1767760558208,0.47231657,3254.4,3254.1,0.002]
[1767760558412,0.28341845,3254.3,3254.1,0.002]
[1767760558618,0.47231657,3254.4,3254.1,0.002]
[1767760558826,0.28341845,3254.3,3254.1,0.002]
[1767760559118,0.47231657,3254.4,3254.1,0.002]
[1767760559318,0.28341825,3254.3,3254.1,0.002]
[1767760559534,0.28341825,3254.2,3254.1,0.002]
[1767760560934,3.07223062,3255.0,3254.2,0.95553015]
[1767760561127,4.00874499,3255.0,3254.2,1.13178317]
[1767760561842,7.64712535,3255.6,3254.2,1.13178317]
[1767760561843,0.97037782,3255.3,3254.2,1.13178317]
[1767760562141,0.97037782,3255.3,3254.4,0.9841014]
[1767760562713,4.04229862,3255.3,3254.5,0.9841014]
[1767760565554,0.97037782,3255.3,3254.5,4.05675931]
[1767760565728,3.07177445,3255.5,3254.7,0.9841014]
[1767760565936,0.97037782,3255.4,3254.6,0.805]
[1767760567867,0.97037782,3255.4,3254.6,3.87755295]
[1767760568361,0.97037782,3255.3,3254.6,0.805]
[1767760568575,0.97037782,3255.3,3254.6,1.33174776]
[1767760568723,0.97037782,3255.3,3254.6,0.805]
[1767760568923,0.97037782,3255.3,3254.6,1.7891014]
[1767760569149,0.97037782,3255.3,3254.6,4.86165976]
[1767760569363,0.97037782,3255.3,3254.7,0.9841014]
[1767760569656,0.001,3255.1,3254.7,0.9841014]
[1767760569860,0.001,3255.1,3254.7,1.47026738]
[1767760570957,0.97037782,3255.5,3254.7,0.48616598]
[1767760572025,0.97037782,3255.5,3254.7,3.55861601]
[1767760573064,0.97037782,3255.3,3254.7,3.55861601]
[1767760573224,0.28413742,3255.2,3254.7,3.55861601]
[1767760573420,0.28413742,3255.1,3254.8,0.74361792]
[1767760573621,2e-08,3255.0,3254.8,1.42841414]
[1767760573826,3.07167497,3255.6,3254.9,0.9841014]
[1767760574027,4.04205279,3255.6,3254.9,0.58502859]
[1767760574228,7.11376015,3255.6,3254.9,0.58502859]
[1767760574448,0.71137602,3255.5,3254.9,0.58502859]
[1767760575025,7.11376015,3255.6,3254.9,0.58502859]
[1767760575226,4.04205279,3255.6,3254.7,0.9841014]
[1767760575658,0.97037782,3255.5,3254.7,0.9841014]
[1767760575832,0.97037782,3255.5,3254.1,0.002]
[1767760575833,5.453826,3255.2,3254.5,0.805]
[1767760576038,5.9992086,3255.2,3254.5,0.805]
[1767760576462,1.51576042,3255.2,3254.5,0.805]
[1767760576627,0.97037782,3255.2,3254.5,0.805]
[1767760577037,0.97037782,3255.2,3254.4,0.9841014]
[1767760577244,0.97037782,3255.1,3254.4,0.805]
[1767760578559,0.97037782,3255.1,3254.4,1.7891014]
[1767760579358,0.97037782,3255.1,3254.4,4.86183485]
[1767760580276,4.48344818,3255.2,3254.2,0.9841014]
[1767760580566,7.11454306,3255.2,3254.4,0.9841014]
[1767760580769,0.65792834,3255.1,3254.4,0.58497782]
[1767760580972,1.62830616,3255.1,3254.4,0.38542123]
[1767760581174,0.97037782,3255.1,3254.4,0.38542123]
[1767760581333,4.04248664,3255.1,3254.4,0.38542123]
[1767760581853,4.04248664,3255.1,3254.7,0.002]
[1767760582076,7.11559546,3255.1,3254.7,0.002]
[1767760582242,4.04348664,3255.1,3254.7,0.002]
[1767760583171,0.97137782,3255.1,3254.7,0.002]
[1767760583548,0.97137782,3255.1,3254.4,0.38742123]
[1767760584070,4.04349073,3255.1,3254.4,0.38742123]
[1767760584766,0.97037782,3255.0,3254.4,0.002]
[1767760584938,0.97037782,3255.0,3254.4,0.807]
[1767760585567,0.2857259,3254.9,3254.4,0.807]
[1767760585777,1e-08,3254.8,3254.5,0.03072668]
[1767760585935,0.001,3255.1,3254.5,0.9841014]
[1767760586262,0.001,3255.1,3254.4,6.95251352]
[1767760586263,0.001,3255.1,3254.7,0.9841014]
[1767760589149,0.001,3255.1,3254.6,0.79366149]
[1767760590968,0.001,3255.1,3254.7,0.9841014]
[1767760592070,0.001,3255.1,3254.8,0.805]
[1767760592573,0.001,3255.1,3254.7,0.9841014]
[1767760592743,0.001,3255.1,3254.8,0.805]
[1767760593673,0.001,3255.1,3254.8,0.50568796]
[1767760594353,0.001,3255.1,3254.6,1.59866149]
[1767760594873,0.001,3254.8,3254.5,0.94693928]
[1767760595341,0.001,3255.1,3254.5,0.94693928]
[1767760595546,0.99208476,3255.1,3254.4,4.82665291]
[1767760595743,0.99208476,3255.1,3254.5,0.94693928]
[1767760597175,0.001,3255.1,3254.5,0.94693928]
[1767760597382,0.001,3255.1,3254.7,0.94693928]
[1767760598175,0.64419245,3255.3,3254.7,0.94693928]
[1767760599167,3.07200786,3255.2,3254.7,0.94693928]
[1767760599473,0.99108476,3255.1,3254.5,0.94693928]
[1767760599673,0.99108476,3255.1,3254.4,0.002]
[1767760599978,0.99108476,3254.9,3254.4,0.002]
[1767760600591,0.99108476,3254.9,3254.5,3.07265296]
[1767760600753,0.99108476,3255.4,3254.5,0.94693928]
[1767760601276,4.06292595,3255.4,3254.6,4.01945759]
[1767760601481,0.99108476,3255.3,3254.6,4.01945759]
[1767760601678,0.99108476,3255.3,3254.6,0.70941407]
[1767760601866,0.99108476,3255.3,3254.4,4.02165908]
[1767760602178,0.99108476,3255.3,3254.5,0.805]
[1767760603681,0.99108476,3255.2,3254.5,0.805]
[1767760604073,0.99108476,3255.2,3254.4,3.0747198]
[1767760604074,0.99108476,3255.2,3254.4,3.8797198]
[1767760604254,3.07186356,3255.4,3254.6,0.94693928]
[1767760604653,4.06294832,3255.4,3254.6,0.94693928]
[1767760605885,7.13482617,3255.4,3254.6,0.94693928]
[1767760606057,7.84830879,3255.4,3254.6,0.94693928]
[1767760606667,7.84830879,3255.4,3254.8,0.002]
[1767760606984,0.001,3255.1,3254.6,0.94693928]
[1767760610689,0.001,3255.1,3254.7,0.94693928]
[1767760614989,0.65941948,3255.3,3254.6,3.07257017]
[1767760615159,0.99108476,3255.9,3255.1,0.94693928]
[1767760615364,0.99108476,3255.7,3254.8,0.94693928]
[1767760615574,6.80231063,3255.8,3254.8,0.94693928]
[1767760615575,1.65051193,3255.6,3254.8,0.94693928]
[1767760615779,0.65942717,3255.5,3254.8,0.94693928]
[1767760616882,0.99108476,3255.4,3254.8,0.94693928]
[1767760617086,0.99108476,3255.4,3254.8,1.46013192]
[1767760618094,0.99108476,3255.4,3254.8,1.45813192]
[1767760618391,4.06292186,3255.4,3254.7,0.30745702]
[1767760618594,0.99108476,3255.3,3254.5,0.002]
[1767760618992,0.9106092,3255.2,3254.5,0.002]
[1767760619509,0.9106092,3255.2,3254.5,0.96089316]
[1767760620314,0.9106092,3254.9,3254.5,0.002]
[1767760620609,0.9106092,3255.1,3254.5,0.002]
[1767760620772,0.9106092,3255.1,3254.5,0.96089316]
[1767760620973,0.43809732,3255.0,3254.5,0.96089316]
[1767760621372,0.9106092,3254.9,3254.4,0.002]
[1767760622109,1.00261116,3254.9,3254.4,0.002]
[1767760622303,3.0723854,3254.8,3254.4,0.002]
[1767760623413,4.01744936,3254.8,3254.4,0.002]
[1767760623716,1.75524022,3254.7,3254.4,0.002]
[1767760625506,0.81017626,3254.7,3254.4,0.002]
[1767760626190,0.7181743,3254.7,3254.4,0.002]
[1767760626586,0.09200196,3254.9,3254.4,0.9551838]
[1767760626850,0.001,3255.3,3254.4,0.9551838]
[1767760627106,3.73225941,3255.3,3254.4,0.9551838]
[1767760627404,6.14482808,3255.3,3254.4,0.9551838]
[1767760627781,3.07291404,3255.3,3254.4,0.9551838]
[1767760628582,0.001,3255.3,3254.4,4.02790504]
[1767760628795,0.66032839,3255.3,3254.5,0.9531838]
[1767760629507,1.69739431,3255.3,3254.5,0.9531838]
[1767760629711,1.03806592,3255.3,3254.5,0.9531838]
[1767760629912,1.03706592,3254.8,3254.4,0.002]
[1767760630208,1.03706592,3254.8,3254.1,0.9551838]
[1767760630413,1.03706592,3254.8,3254.1,0.002]
[1767760630915,3.07247979,3254.7,3254.1,0.002]
[1767760631104,4.73574551,3254.7,3254.1,0.002]
[1767760631502,7.8082253,3254.7,3254.1,0.002]
[1767760631805,1.03706592,3254.6,3254.1,0.002]
[1767760632594,0.94506396,3254.6,3254.1,0.002]
[1767760632917,0.001,3255.0,3254.2,0.9531838]
[1767760633608,0.65938167,3255.0,3254.2,0.9531838]
[1767760635418,3.072291,3254.9,3254.2,0.9531838]
[1767760637021,3.07322148,3255.0,3254.2,0.9531838]
[1767760637022,3.07323179,3255.0,3254.2,0.9531838]
[1767760637319,3.79147419,3255.0,3254.2,0.9531838]
[1767760637717,0.7192424,3255.0,3254.3,0.9531838]
[1767760638022,3.07322416,3255.0,3254.3,0.9531838]
[1767760638386,0.001,3255.0,3254.3,0.9531838]
[1767760638591,3.73178313,3255.0,3254.3,0.9531838]
[1767760638803,3.07322395,3255.0,3254.3,0.9531838]
[1767760639726,0.001,3255.0,3254.3,0.9531838]
[1767760640026,0.001,3255.0,3254.4,0.9531838]